bitfinex/quotes_BTCUSD_20241024
["timestamp","ask_amount","ask_price","bid_price","bid_amount"]
[1729809629857,0.01632293,68254.0,68253.0,0.00499914]
[1729809630498,0.16283393,68254.0,68253.0,0.00499914]
[1729809631352,0.01412513,68254.0,68253.0,0.00499914]
[1729809631583,0.001652,68256.0,68253.0,0.00499914]
[1729809631986,0.146512,68254.0,68253.0,0.00957988]
[1729809632424,0.15686431,68254.0,68253.0,0.00458074]
[1729809635012,0.15466647,68254.0,68253.0,0.00458074]
[1729809636117,0.15686449,68254.0,68253.0,0.00458074]
[1729809638172,0.146513,68253.0,68252.0,0.000829]
[1729809638642,0.1546672,68253.0,68252.0,0.000829]
[1729809640199,0.60377146,68253.0,68252.0,0.000829]
[1729809644413,0.75226701,68253.0,68252.0,0.000829]
[1729809647026,0.79606194,68253.0,68252.0,0.000829]
[1729809647254,0.79606194,68253.0,68250.0,0.00176136]
[1729809647255,0.14761745,68251.0,68250.0,0.00176136]
[1729809647480,0.59562126,68251.0,68250.0,0.00176136]
[1729809647696,0.67855832,68251.0,68250.0,0.00176136]
[1729809647886,0.6347731,68251.0,68250.0,0.00176136]
[1729809648576,0.6785461,68251.0,68250.0,0.00176136]
[1729809649419,0.68108824,68251.0,68250.0,0.00176136]
[1729809649866,0.67853859,68251.0,68250.0,0.00176136]
[1729809650518,0.6347731,68251.0,68250.0,0.00176136]
[1729809650953,0.67853859,68251.0,68250.0,0.00176136]
[1729809651779,0.89741285,68251.0,68250.0,0.00176136]
[1729809652011,0.67853859,68251.0,68250.0,0.00176136]
[1729809652447,0.67851714,68251.0,68250.0,0.00176136]
[1729809653654,0.6347731,68251.0,68250.0,0.00176136]
[1729809654293,0.6347731,68251.0,68250.0,0.00258736]
[1729809658907,0.28566884,68251.0,68250.0,0.00258736]
[1729809659092,0.18566884,68251.0,68250.0,0.00258736]
[1729809660261,0.28566884,68251.0,68250.0,0.00258736]
[1729809662561,0.29660724,68251.0,68250.0,0.00258736]
[1729809665741,0.19660724,68251.0,68250.0,0.00258736]
[1729809666697,0.18566884,68251.0,68250.0,0.00258736]
[1729809669447,0.19661095,68251.0,68250.0,0.00258736]
[1729809671406,0.18566884,68251.0,68250.0,0.00258736]
[1729809671617,0.19661363,68251.0,68250.0,0.00258736]
[1729809672246,0.37601363,68251.0,68250.0,0.00258736]
[1729809674408,0.36506884,68251.0,68250.0,0.00258736]
[1729809675122,0.37600704,68251.0,68250.0,0.00258736]
[1729809678996,0.52450259,68251.0,68250.0,0.00258736]
[1729809680002,0.51356439,68251.0,68250.0,0.00258736]
[1729809681967,0.52452335,68251.0,68250.0,0.00258736]
[1729809682606,0.56937114,68251.0,68250.0,0.00258736]
[1729809682796,0.56937074,68251.0,68250.0,0.00258736]
[1729809683038,0.56936972,68251.0,68250.0,0.00258736]
[1729809683471,0.5256238,68251.0,68250.0,0.00258736]
[1729809683678,0.56937564,68251.0,68250.0,0.00258736]
[1729809683889,0.5693757,68251.0,68250.0,0.00258736]
[1729809684129,0.60220364,68251.0,68250.0,0.00258736]
[1729809684342,0.58033484,68251.0,68250.0,0.00258736]
[1729809684552,0.60220364,68251.0,68250.0,0.00258736]
[1729809684777,0.53658262,68251.0,68250.0,0.00258736]
[1729809685012,0.60221625,68251.0,68250.0,0.00258736]
[1729809685448,0.53658262,68251.0,68250.0,0.00258736]
[1729809685883,0.78563822,68251.0,68250.0,0.00258736]
[1729809686522,0.84185361,68251.0,68250.0,0.00258736]
[1729809687415,0.84185008,68251.0,68250.0,0.00258736]
[1729809687838,0.8418559,68251.0,68250.0,0.00258736]
[1729809688296,0.84185289,68251.0,68250.0,0.00258736]
[1729809688512,0.76630182,68251.0,68250.0,0.00258736]
[1729809688725,1.35182391,68251.0,68250.0,0.00258736]
[1729809688965,1.24242406,68251.0,68250.0,0.00258736]
[1729809689417,1.02233976,68251.0,68250.0,0.00258736]
[1729809690066,1.02488351,68251.0,68250.0,0.00258736]
[1729809690507,1.02233976,68251.0,68250.0,0.00258736]
[1729809691131,1.12469523,68251.0,68250.0,0.00258736]
[1729809691390,1.01138094,68251.0,68250.0,0.00258736]
[1729809691604,1.11373641,68251.0,68250.0,0.00258736]
[1729809691832,1.01138094,68251.0,68250.0,0.00258736]
[1729809692087,1.11373641,68251.0,68250.0,0.00258736]
[1729809693179,1.11373027,68251.0,68250.0,0.00258736]
[1729809693816,1.10277745,68251.0,68250.0,0.00258736]
[1729809694051,1.11372006,68251.0,68250.0,0.00258736]
[1729809694713,1.24499988,68251.0,68250.0,0.00258736]
[1729809694940,1.14264441,68251.0,68250.0,0.00258736]
[1729809695150,0.80665365,68251.0,68250.0,0.00258736]
[1729809695388,1.01136459,68251.0,68250.0,0.00258736]
[1729809696663,1.02230704,68251.0,68250.0,0.00258736]
[1729809697104,1.01136459,68251.0,68250.0,0.00258736]
[1729809697979,0.94721657,68251.0,68250.0,0.00258736]
[1729809698192,0.66396078,68251.0,68250.0,0.00258736]
[1729809698821,0.7514491,68251.0,68250.0,0.00258736]
[1729809699028,0.66396078,68251.0,68250.0,0.00258736]
[1729809699484,0.67490179,68251.0,68250.0,0.00258736]
[1729809699883,0.66396078,68251.0,68250.0,0.00258736]
[1729809700780,0.75145306,68251.0,68250.0,0.00258736]
[1729809700984,0.66396078,68251.0,68250.0,0.00258736]
[1729809701222,0.67490261,68251.0,68250.0,0.00258736]
[1729809701425,0.66396078,68251.0,68250.0,0.00258736]
[1729809702309,0.60781021,68251.0,68250.0,0.00258736]
[1729809702734,0.61875203,68251.0,68250.0,0.00258736]
[1729809703157,0.60781021,68251.0,68250.0,0.00258736]
[1729809703366,0.5968676,68251.0,68250.0,0.00258736]
[1729809703576,0.68436248,68251.0,68250.0,0.00258736]
[1729809704007,0.45790639,68251.0,68250.0,0.00258736]
[1729809704217,0.46884845,68251.0,68250.0,0.00258736]
[1729809704453,0.42509859,68251.0,68250.0,0.00258736]
[1729809705555,0.43604095,68251.0,68250.0,0.00258736]
[1729809706607,0.50166634,68251.0,68250.0,0.00258736]
[1729809706860,0.76134265,68251.0,68250.0,0.00258736]
[1729809707083,0.67384213,68251.0,68250.0,0.00258736]
[1729809707294,0.84734594,68251.0,68250.0,0.00258736]
[1729809707726,0.95672159,68251.0,68250.0,0.00258736]
[1729809708432,0.68615476,68251.0,68250.0,0.00258736]
[1729809708660,0.4371414,68251.0,68250.0,0.00258736]
[1729809709330,0.50277737,68251.0,68250.0,0.00258736]
[1729809709793,0.4371414,68251.0,68250.0,0.00258736]
[1729809710038,0.50277883,68251.0,68250.0,0.00258736]
[1729809710259,0.4371414,68251.0,68250.0,0.00258736]
[1729809710481,0.59867025,68251.0,68250.0,0.00258736]
[1729809710948,0.68618288,68251.0,68250.0,0.00258736]
[1729809711176,0.50278038,68251.0,68250.0,0.00258736]
[1729809711861,0.59869253,68251.0,68250.0,0.00258736]
[1729809712098,0.4371414,68251.0,68250.0,0.00258736]
[1729809712328,0.49185018,68251.0,68250.0,0.00258736]
[1729809712782,0.43714374,68251.0,68250.0,0.00258736]
[1729809712997,0.67527472,68251.0,68250.0,0.00258736]
[1729809713669,0.57682003,68251.0,68250.0,0.00258736]
[1729809713908,0.25465431,68251.0,68250.0,0.00258736]
[1729809714119,0.44699741,68251.0,68250.0,0.00258736]
[1729809714323,0.40321468,68251.0,68250.0,0.00258736]
[1729809714843,0.4054129,68251.0,68250.0,0.00258736]
[1729809715986,0.44920026,68251.0,68250.0,0.00258736]
[1729809716419,0.44920749,68251.0,68250.0,0.00258736]
[1729809716872,0.4601499,68251.0,68250.0,0.00258736]
[1729809717343,0.41635531,68251.0,68250.0,0.00258736]
[1729809717562,0.4054129,68251.0,68250.0,0.00258736]
[1729809717782,0.44921612,68251.0,68250.0,0.00258736]
[1729809718003,0.44921621,68251.0,68250.0,0.00258736]
[1729809718226,0.44701799,68251.0,68250.0,0.00258736]
[1729809718677,0.4054128,68251.0,68250.0,0.00258736]
[1729809719551,0.41635865,68251.0,68250.0,0.00258736]
[1729809720024,0.48207179,68251.0,68250.0,0.00258736]
[1729809720908,0.4054128,68251.0,68250.0,0.00258736]
[1729809721200,0.48207372,68251.0,68250.0,0.00258736]
[1729809721401,0.41636058,68251.0,68250.0,0.00258736]
[1729809721827,0.48207372,68251.0,68250.0,0.00258736]
[1729809722036,0.56713075,68251.0,68250.0,0.00258736]
[1729809722529,0.4054128,68251.0,68250.0,0.00258736]
[1729809723350,0.56713684,68251.0,68250.0,0.00258736]
[1729809723549,0.4054128,68251.0,68250.0,0.00258736]
[1729809726368,0.37013251,68251.0,68250.0,0.00258736]
[1729809726795,0.4249177,68251.0,68250.0,0.00258736]
[1729809727481,0.40300896,68251.0,68250.0,0.00258736]
[1729809727704,0.35918203,68251.0,68250.0,0.00258736]
[1729809727930,0.40301331,68251.0,68250.0,0.00258736]
[1729809728379,0.35918203,68251.0,68250.0,0.00258736]
[1729809728610,0.37014135,68251.0,68250.0,0.00258736]
[1729809728869,0.41397263,68251.0,68250.0,0.00258736]
[1729809729087,0.37014135,68251.0,68250.0,0.00258736]
[1729809729303,0.41397263,68251.0,68250.0,0.00258736]
[1729809729508,0.37014135,68251.0,68250.0,0.00258736]
[1729809730373,0.41398667,68251.0,68250.0,0.00258736]
[1729809730616,0.40302735,68251.0,68250.0,0.00258736]
[1729809730843,0.41399579,68251.0,68250.0,0.00258736]
[1729809731064,0.41399606,68251.0,68250.0,0.00258736]
[1729809731300,0.37015174,68251.0,68250.0,0.00258736]
[1729809731511,0.43589866,68251.0,68250.0,0.00258736]
[1729809732182,0.37015174,68251.0,68250.0,0.00258736]
[1729809732639,0.43589866,68251.0,68250.0,0.00258736]
[1729809733081,0.37015174,68251.0,68250.0,0.00258736]
[1729809733718,0.4139919,68251.0,68250.0,0.00258736]
[1729809733970,0.37015174,68251.0,68250.0,0.00258736]
[1729809734179,0.4139939,68251.0,68250.0,0.00258736]
[1729809734405,0.37015174,68251.0,68250.0,0.00258736]
[1729809734631,0.41399111,68251.0,68250.0,0.00258736]
[1729809734859,0.41399036,68251.0,68250.0,0.00258736]
[1729809735084,0.35918203,68251.0,68250.0,0.00258736]
[1729809735765,0.40302077,68251.0,68250.0,0.00258736]
[1729809735981,0.40302054,68251.0,68250.0,0.00258736]
[1729809736199,0.35918203,68251.0,68250.0,0.00258736]
[1729809736484,0.40302074,68251.0,68250.0,0.00258736]
[1729809736728,0.35918203,68251.0,68250.0,0.00258736]
[1729809737157,0.40302159,68251.0,68250.0,0.00258736]
[1729809737378,0.35918203,68251.0,68250.0,0.00258736]
[1729809737606,0.40302212,68251.0,68250.0,0.00258736]
[1729809737847,0.42494152,68251.0,68250.0,0.00258736]
[1729809738304,0.25465431,68251.0,68250.0,0.00258736]
[1729809738543,0.29849716,68251.0,68250.0,0.00258736]
[1729809738753,0.26562363,68251.0,68250.0,0.00258736]
[1729809738976,0.27879155,68251.0,68250.0,0.00258736]
[1729809739873,0.3226344,68251.0,68250.0,0.00258736]
[1729809740119,0.33360418,68251.0,68250.0,0.00258736]
[1729809740527,0.3226344,68251.0,68250.0,0.00258736]
[1729809741411,0.33360622,68251.0,68250.0,0.00258736]
[1729809741887,0.3226344,68251.0,68250.0,0.00258736]
[1729809742105,0.3226377,68251.0,68250.0,0.00258736]
[1729809742505,0.27879155,68251.0,68250.0,0.00258736]
[1729809742735,0.28976335,68251.0,68250.0,0.00258736]
[1729809742953,0.35553258,68251.0,68250.0,0.00258736]
[1729809743377,0.45786218,68251.0,68250.0,0.00258736]
[1729809744342,0.35553258,68251.0,68250.0,0.00258736]
[1729809744817,0.70165336,68251.0,68250.0,0.00258736]
[1729809745035,0.7505719,68251.0,68250.0,0.00258736]
[1729809745480,0.75285067,68251.0,68250.0,0.00258736]
[1729809745940,0.90335448,68251.0,68250.0,0.00258736]
[1729809746178,0.89238268,68251.0,68250.0,0.00258736]
[1729809746674,0.89238268,68251.0,68247.0,0.000829]
[1729809746675,0.64778365,68248.0,68247.0,0.000829]
[1729809746893,1.09166847,68248.0,68247.0,0.000829]
[1729809747132,0.97054123,68248.0,68247.0,0.000829]
[1729809747368,0.97054123,68248.0,68242.0,0.000829]
[1729809747369,0.64779465,68243.0,68242.0,0.000829]
[1729809747599,0.96014632,68243.0,68242.0,0.000829]
[1729809747829,0.9705459,68243.0,68242.0,0.000829]
[1729809750549,0.8705459,68243.0,68242.0,0.000829]
[1729809750977,0.9705459,68243.0,68242.0,0.000829]
[1729809751658,1.07982613,68243.0,68242.0,0.000829]
[1729809751880,1.0907711,68243.0,68242.0,0.000829]
[1729809752577,1.07982613,68243.0,68242.0,0.000829]
[1729809753049,0.97034854,68243.0,68242.0,0.000829]
[1729809753494,1.07979286,68243.0,68242.0,0.000829]
[1729809753926,1.09072926,68243.0,68242.0,0.000829]
[1729809754140,1.07979286,68243.0,68242.0,0.000829]
[1729809754353,1.07973683,68243.0,68242.0,0.000829]
[1729809754784,1.0906698,68243.0,68242.0,0.000829]
[1729809755435,0.9702953,68243.0,68242.0,0.000829]
[1729809756287,0.7656361,68243.0,68242.0,0.000829]
[1729809756499,0.9702953,68243.0,68242.0,0.000829]
[1729809756729,0.97023331,68243.0,68242.0,0.000829]
[1729809756954,0.87433922,68243.0,68242.0,0.000829]
[1729809757198,0.80869804,68243.0,68242.0,0.000829]
[1729809757639,1.05773792,68243.0,68242.0,0.000829]
[1729809758138,0.27064845,68237.0,68236.0,0.21970326]
[1729809758376,0.47750634,68237.0,68236.0,0.21970326]
[1729809758586,0.48788863,68237.0,68236.0,0.000829]
[1729809759253,0.59021823,68237.0,68236.0,0.000829]
[1729809759447,0.95647657,68237.0,68236.0,0.000829]
[1729809759700,0.95427788,68237.0,68236.0,0.000829]
[1729809760167,0.97615515,68237.0,68236.0,0.000829]
[1729809760386,1.07196257,68237.0,68236.0,0.000829]
[1729809760605,1.15947164,68237.0,68236.0,0.000829]
[1729809760846,1.05714204,68237.0,68236.0,0.000829]
[1729809761083,1.05710092,68237.0,68236.0,0.000829]
[1729809761310,0.4742172,68232.0,68231.0,0.000829]
[1729809761738,0.48459963,68232.0,68231.0,0.000829]
[1729809763273,0.49553108,68232.0,68231.0,0.000829]
[1729809764139,0.50646249,68232.0,68231.0,0.000829]
[1729809764357,0.49553108,68232.0,68231.0,0.000829]
[1729809764594,0.49663153,68232.0,68231.0,0.000829]
[1729809764809,0.4512282,68227.0,68226.0,0.000829]
[1729809765281,0.4616069,68227.0,68226.0,0.000829]
[1729809765511,0.47254375,68227.0,68226.0,0.000829]
[1729809765948,0.4616069,68227.0,68226.0,0.000829]
[1729809766389,0.64714378,68227.0,68226.0,0.000829]
[1729809766618,0.63621116,68227.0,68226.0,0.000829]
[1729809768421,0.64714372,68227.0,68226.0,0.000829]
[1729809768863,0.65807565,68227.0,68226.0,0.000829]
[1729809769319,0.66696865,68227.0,68226.0,0.000829]
[1729809769782,0.76929825,68227.0,68226.0,0.000829]
[1729809770003,0.83896865,68227.0,68226.0,0.000829]
[1729809770222,0.82803672,68227.0,68226.0,0.000829]
[1729809770437,0.81710416,68227.0,68226.0,0.000829]
[1729809771130,0.81710416,68227.0,68216.0,0.000829]
[1729809771131,0.24769145,68217.0,68216.0,0.000829]
[1729809771338,0.35002105,68217.0,68216.0,0.000829]
[1729809771585,0.46268631,68217.0,68216.0,0.000829]
[1729809772531,0.36896237,68217.0,68216.0,0.000829]
[1729809772759,0.25692666,68217.0,68216.0,0.000829]
[1729809772961,0.35925626,68217.0,68216.0,0.000829]
[1729809776711,0.35925626,68217.0,68216.0,0.096529]
[1729809776934,0.35925626,68217.0,68216.0,0.10042855]
[1729809777369,0.25692666,68217.0,68216.0,0.10042855]
[1729809778024,0.35925626,68217.0,68216.0,0.10042855]
[1729809778238,0.35925626,68217.0,68216.0,0.18302855]
[1729809778239,0.15692666,68217.0,68216.0,0.18302855]
[1729809778688,0.01033566,68217.0,68216.0,0.33353236]
[1729809778938,0.01033566,68217.0,68216.0,0.4901245]
[1729809779167,0.3954906,68222.0,68221.0,0.00389955]
[1729809779381,0.5420706,68222.0,68221.0,0.00389955]
[1729809779599,0.25923919,68222.0,68221.0,0.18219955]
[1729809779851,0.15690959,68222.0,68221.0,0.18219955]
[1729809781658,0.15690959,68222.0,68221.0,0.19219869]
[1729809781881,0.25923919,68222.0,68221.0,0.19219869]
[1729809785489,0.25923919,68222.0,68221.0,0.3427025]
[1729809785490,0.01032959,68222.0,68221.0,0.3427025]
[1729809785966,0.146577,68224.0,68223.0,0.00389955]
[1729809787478,0.146567,68228.0,68227.0,0.00389955]
[1729809787686,0.441335,68231.0,68230.0,0.00389955]
[1729809788356,0.148212,68231.0,68230.0,0.00389955]
[1729809789257,0.148212,68231.0,68230.0,0.15440336]
[1729809789488,0.148212,68231.0,68230.0,0.1644025]
[1729809790408,0.001652,68231.0,68230.0,0.49219643]
[1729809790620,0.001652,68231.0,68230.0,0.4892655]
[1729809791521,0.001652,68231.0,68230.0,0.4912655]
[1729809795259,0.001652,68231.0,68230.0,0.4958468]
[1729809796323,0.001652,68231.0,68230.0,0.4912655]
[1729809796982,0.001652,68231.0,68230.0,0.3427025]
[1729809797205,0.148212,68231.0,68230.0,0.1644025]
[1729809797547,0.01712515,68231.0,68230.0,0.1644025]
[1729809797550,0.16368515,68231.0,68230.0,0.1644025]
[1729809797966,0.146571,68226.0,68225.0,0.00389955]
[1729809798179,0.2489006,68226.0,68225.0,0.00389955]
[1729809798413,0.26102805,68226.0,68225.0,0.00389955]
[1729809800489,0.30732099,68226.0,68225.0,0.00389955]
[1729809802380,0.30732099,68226.0,68221.0,0.00999914]
[1729809802381,0.14658,68222.0,68221.0,0.00999914]
[1729809802590,0.14862254,68222.0,68218.0,0.00999914]
[1729809802817,0.146586,68219.0,68218.0,0.00999914]
[1729809803244,0.16276582,68219.0,68218.0,0.00999914]
[1729809803656,0.01617982,68219.0,68216.0,0.000829]
[1729809803838,0.146591,68217.0,68216.0,0.01082814]
[1729809804263,0.16278199,68217.0,68216.0,0.16133195]
[1729809804471,0.31140453,68217.0,68216.0,0.000829]
[1729809804677,0.31140453,68217.0,68216.0,0.01082814]
[1729809806791,0.31140453,68217.0,68216.0,0.000829]
[1729809807007,0.31140453,68217.0,68216.0,0.01082814]
[1729809809454,0.31140453,68217.0,68216.0,0.000829]
[1729809809679,0.41110453,68217.0,68216.0,0.000829]
[1729809810139,0.26248199,68217.0,68216.0,0.000829]
[1729809811062,0.34328199,68217.0,68216.0,0.000829]
[1729809812447,0.24358199,68217.0,68216.0,0.000829]
[1729809815520,0.34328199,68217.0,68216.0,0.000829]
[1729809819945,0.32182199,68217.0,68216.0,0.000829]
[1729809822299,0.4242825,68217.0,68216.0,0.000829]
[1729809827333,0.3245825,68217.0,68216.0,0.000829]
[1729809833495,0.4264825,68217.0,68216.0,0.000829]
[1729809834160,0.5264825,68217.0,68216.0,0.000829]
[1729809834805,0.53742593,68217.0,68216.0,0.000829]
[1729809836974,0.5264825,68217.0,68216.0,0.000829]
[1729809839700,0.79038605,68217.0,68216.0,0.440609]
[1729809839914,0.85709493,68217.0,68216.0,0.440609]
[1729809840138,0.81338605,68217.0,68216.0,0.440609]
[1729809840368,0.87894937,68217.0,68216.0,0.440609]
[1729809841461,0.76554963,68217.0,68216.0,0.440609]
[1729809841968,0.76720163,68217.0,68216.0,0.440609]
[1729809842180,0.86966214,68217.0,68216.0,0.440609]
[1729809842392,0.80409882,68217.0,68216.0,0.440609]
[1729809842611,0.70163831,68217.0,68216.0,0.440609]
[1729809842828,0.80409882,68217.0,68216.0,0.440609]
[1729809843040,0.71256958,68217.0,68216.0,0.440609]
[1729809843319,0.81503009,68217.0,68216.0,0.440609]
[1729809843780,0.71256958,68217.0,68216.0,0.440609]
[1729809844000,0.43660526,68217.0,68216.0,0.440609]
[1729809844226,0.53906577,68217.0,68216.0,0.440609]
[1729809845346,0.58275256,68217.0,68216.0,0.440609]
[1729809846825,0.53906577,68217.0,68216.0,0.440609]
[1729809847508,0.58275256,68217.0,68216.0,0.440609]
[1729809848406,0.53906577,68217.0,68216.0,0.440609]
[1729809848619,0.5281345,68217.0,68216.0,0.440609]
[1729809850375,0.60463323,68217.0,68216.0,0.440609]
[1729809851053,0.60467142,68217.0,68216.0,0.440609]
[1729809851890,0.59373601,68217.0,68216.0,0.440609]
[1729809853512,0.69619652,68217.0,68216.0,0.440609]
[1729809853717,0.86970033,68217.0,68216.0,0.440609]
[1729809853928,1.05302973,68217.0,68216.0,0.440609]
[1729809855451,1.06396564,68217.0,68216.0,0.440609]
[1729809856092,0.85904462,68217.0,68216.0,0.440609]
[1729809856319,0.78800132,68217.0,68216.0,0.440609]
[1729809856548,0.70053264,68217.0,68216.0,0.440609]
[1729809857185,0.80299315,68217.0,68216.0,0.440609]
[1729809857600,0.70053264,68217.0,68216.0,0.440609]
[1729809857802,0.68959673,68217.0,68216.0,0.440609]
[1729809858631,0.70053444,68217.0,68216.0,0.440609]
[1729809858871,0.53907221,68217.0,68216.0,0.440609]
[1729809859091,0.78801635,68217.0,68216.0,0.440609]
[1729809859729,0.50285584,68217.0,68216.0,0.440609]
[1729809859956,0.60531635,68217.0,68216.0,0.440609]
[1729809860998,0.35637221,68217.0,68216.0,0.440609]
[1729809861466,0.1539117,68217.0,68216.0,0.440609]
[1729809862764,0.2539117,68217.0,68216.0,0.440609]
[1729809865367,0.24297399,68217.0,68216.0,0.440609]
[1729809866730,0.2539179,68217.0,68216.0,0.440609]
[1729809869735,0.24297399,68217.0,68216.0,0.440609]
[1729809870929,0.25391696,68217.0,68216.0,0.440609]
[1729809871351,0.24297399,68217.0,68216.0,0.440609]
[1729809871978,0.25391663,68217.0,68216.0,0.440609]
[1729809873494,0.24297399,68217.0,68216.0,0.440609]
[1729809873940,0.25391634,68217.0,68216.0,0.440609]
[1729809874572,0.35637685,68217.0,68216.0,0.440609]
[1729809875643,0.25391634,68217.0,68216.0,0.440609]
[1729809876071,0.35637685,68217.0,68216.0,0.440609]
[1729809876505,0.3454345,68217.0,68216.0,0.440609]
[1729809877588,0.2454345,68217.0,68216.0,0.440609]
[1729809881074,0.25637683,68217.0,68216.0,0.440609]
[1729809882906,0.15391632,68217.0,68216.0,0.59111281]
[1729809883751,0.25637683,68217.0,68216.0,0.59111281]
[1729809884169,0.2454345,68217.0,68216.0,0.59111281]
[1729809885940,0.25637608,68217.0,68216.0,0.59111281]
[1729809886792,0.25637511,68217.0,68216.0,0.59111281]
[1729809888434,0.1539146,68217.0,68216.0,0.59569615]
[1729809888851,0.14297399,68217.0,68216.0,0.59569615]
[1729809889059,0.14297399,68217.0,68216.0,0.59111281]
[1729809890770,0.15391874,68217.0,68216.0,0.59569613]
[1729809891376,0.14297399,68217.0,68216.0,0.59569613]
[1729809891978,0.15391703,68217.0,68216.0,0.59111281]
[1729809892545,0.15391703,68217.0,68216.0,0.59569613]
[1729809892883,0.15391703,68217.0,68216.0,0.44519232]
[1729809893318,0.14297399,68217.0,68216.0,0.440609]
[1729809894205,0.15391551,68217.0,68216.0,0.440609]
[1729809900563,0.14596352,68217.0,68216.0,0.440609]
[1729809902412,0.14596352,68217.0,68216.0,0.68351281]
[1729809903637,0.02083252,68217.0,68216.0,0.68351281]
[1729809903841,0.156482,68217.0,68216.0,0.68351281]
[1729809904044,0.25070351,68217.0,68216.0,0.68351281]
[1729809904319,0.25893642,68217.0,68216.0,0.68351281]
[1729809904910,0.00988491,68217.0,68216.0,0.68351281]
[1729809905116,0.00988491,68217.0,68216.0,0.83010581]
[1729809905680,0.00988491,68217.0,68216.0,0.68351281]
[1729809906519,0.15647591,68217.0,68216.0,0.68351281]
[1729809908610,0.25893642,68217.0,68216.0,0.59111281]
[1729809909897,0.2698858,68217.0,68216.0,0.59111281]
[1729809911831,0.2698858,68217.0,68216.0,0.59569611]
[1729809913174,0.25893642,68217.0,68216.0,0.59569611]
[1729809913748,0.25893642,68217.0,68216.0,0.59111281]
[1729809914159,0.26988502,68217.0,68216.0,0.59111281]
[1729809914325,0.26988502,68217.0,68216.0,0.59569611]
[1729809915327,0.26988502,68217.0,68216.0,0.59111281]
[1729809918188,0.25893642,68217.0,68216.0,0.59111281]
[1729809922786,0.26988348,68217.0,68216.0,0.59111281]
[1729809923402,0.25893642,68217.0,68216.0,0.59111281]
[1729809924201,0.26988309,68217.0,68216.0,0.59111281]
[1729809924759,0.16742258,68217.0,68216.0,0.59111281]
[1729809925257,0.16470608,68217.0,68216.0,0.59111281]
[1729809926403,0.01811508,68217.0,68216.0,0.92730495]
[1729809926786,0.01811508,68217.0,68216.0,1.03721452]
[1729809926991,0.001652,68217.0,68216.0,0.97308499]
[1729809927446,0.001652,68217.0,68216.0,1.03712714]
[1729809927659,0.001652,68217.0,68216.0,0.92730495]
[1729809927864,0.001652,68217.0,68216.0,0.92930495]
[1729809928271,0.001652,68217.0,68216.0,0.93797351]
[1729809928482,0.001652,68217.0,68216.0,1.0477922]
[1729809928683,0.001652,68217.0,68216.0,0.93797351]
[1729809929431,0.001652,68217.0,68216.0,1.02576398]
[1729809930493,0.001652,68217.0,68216.0,0.93797351]
[1729809931287,0.001652,68217.0,68216.0,1.00379639]
[1729809931505,0.001652,68217.0,68216.0,0.99312783]
[1729809931709,0.001652,68217.0,68216.0,0.74770495]
[1729809936703,0.001652,68217.0,68216.0,0.92730495]
[1729809937858,0.001652,68217.0,68216.0,0.97115842]
[1729809940543,0.001652,68217.0,68216.0,0.97315842]
[1729809940957,0.001652,68217.0,68216.0,1.01709542]
[1729809941378,0.001652,68217.0,68216.0,1.03912364]
[1729809941583,0.001652,68217.0,68216.0,1.13912364]
[1729809942648,0.001652,68217.0,68216.0,1.02930495]
[1729809944538,0.001652,68217.0,68216.0,1.11693481]
[1729809945591,0.001652,68217.0,68216.0,1.11693077]
[1729809948560,0.001652,68217.0,68216.0,1.07311248]
[1729809948774,0.001652,68217.0,68216.0,1.02930495]
[1729809949216,0.001652,68217.0,68216.0,1.13176546]
[1729809950370,0.001652,68217.0,68216.0,0.74770495]
[1729809950576,0.001652,68217.0,68216.0,0.74970495]
[1729809952847,0.001652,68217.0,68216.0,0.74770495]
[1729809953060,0.001652,68217.0,68216.0,0.60111195]
[1729809953275,0.001652,68217.0,68216.0,0.74770495]
[1729809953525,0.01011767,68217.0,68216.0,0.74770495]
[1729809953755,0.001652,68217.0,68216.0,0.74770495]
[1729809953988,0.0101223,68217.0,68216.0,0.74770495]
[1729809954213,0.001652,68217.0,68216.0,0.74970495]
[1729809954437,0.001652,68217.0,68216.0,0.74770495]
[1729809954438,0.0101223,68217.0,68216.0,0.74770495]
[1729809954645,0.001652,68217.0,68216.0,0.74770495]
[1729809956878,0.10411251,68217.0,68216.0,0.60111195]
[1729809957103,0.10411251,68217.0,68216.0,0.44560814]
[1729809957104,0.43090351,68217.0,68216.0,0.44560814]
[1729809957345,0.53336402,68217.0,68216.0,0.440609]
[1729809957566,0.43936037,68217.0,68216.0,0.440609]
[1729809958006,0.44155937,68217.0,68216.0,0.440609]
[1729809958420,0.48779297,68217.0,68216.0,0.440609]
[1729809958830,0.49871294,68217.0,68216.0,0.440609]
[1729809960076,0.59871294,68217.0,68216.0,0.440609]
[1729809960493,0.58779297,68217.0,68216.0,0.440609]
[1729809962233,0.43909886,68217.0,68216.0,0.440609]
[1729809962424,0.48559397,68217.0,68216.0,0.59111281]
[1729809963375,0.48779303,68217.0,68216.0,0.59111281]
[1729809966177,0.33909892,68217.0,68216.0,0.440609]
[1729809968954,0.33909892,68217.0,68216.0,0.59111281]
[1729809969228,0.33689986,68217.0,68216.0,0.59111281]
[1729809969701,0.15669986,68217.0,68216.0,0.59111281]
[1729809970049,0.01010886,68217.0,68216.0,0.73770581]
[1729809970744,0.01706409,68217.0,68216.0,0.73770581]
[1729809970959,0.001652,68217.0,68216.0,0.73770581]
[1729809971166,0.01707104,68217.0,68216.0,0.73770581]
[1729809971376,0.001652,68217.0,68216.0,0.73770581]
[1729809971854,0.01707104,68217.0,68216.0,0.73770581]
[1729809972102,0.001652,68217.0,68216.0,0.73770581]
[1729809972333,0.01707153,68217.0,68216.0,0.73770581]
[1729809973413,0.01707153,68217.0,68216.0,0.59111281]
[1729809976254,0.001652,68217.0,68216.0,0.59111281]
[1729809976462,0.01707202,68217.0,68216.0,0.59111281]
[1729809978856,0.16366302,68217.0,68216.0,0.59111281]
[1729809979277,0.01707202,68217.0,68216.0,0.59111281]
[1729809979530,0.16366302,68217.0,68216.0,0.59111281]
[1729809981893,0.01707202,68217.0,68216.0,0.73770581]
[1729809982373,0.001652,68217.0,68216.0,0.59111281]
[1729809982835,0.01708573,68217.0,68216.0,0.59111281]
[1729809983050,0.01708573,68217.0,68216.0,0.73770581]
[1729809983251,0.001652,68217.0,68216.0,0.59111281]
[1729809983458,0.01708573,68217.0,68216.0,0.73770581]
[1729809983661,0.001652,68217.0,68216.0,0.59111281]
[1729809983876,0.01708573,68217.0,68216.0,0.59111281]
[1729809984080,0.001652,68217.0,68216.0,0.59111281]
[1729809984306,0.01708573,68217.0,68216.0,0.59111281]
[1729809985466,0.01708573,68217.0,68216.0,0.73770581]
[1729809985718,0.01708573,68217.0,68216.0,0.59111281]
[1729809987571,0.01708573,68217.0,68216.0,0.73770581]
[1729809987828,0.01708573,68217.0,68216.0,0.59111281]
[1729809990110,0.001652,68217.0,68216.0,0.59111281]
[1729809990558,0.01708573,68217.0,68216.0,0.59111281]